[Event "Early-Titled-Tuesday-Blitz-June-18-2024"]
[Site "Chess.com"]
[Date "2024.06.18"]
[Round "4"]
[White "c63_amg"]
[Black "snowlord"]
[Result "0-1"]
[WhiteElo "2799"]
[BlackElo "2969"]
[TimeControl "180+1"]
[EndTime "8:41:03 PDT"]
[Termination "snowlord won on time"]

1. e4 {[%clk 0:03:00.9]} 1... e5 {[%clk 0:02:58.5]} 2. Nf3 {[%clk 0:03:01.6]}
2... Nf6 {[%clk 0:02:58.9]} 3. d4 {[%clk 0:03:00.5]} 3... Nxe4 {[%clk
0:02:56.3]} 4. dxe5 {[%clk 0:03:00.7]} 4... d5 {[%clk 0:02:56.5]} 5. Nbd2 {[%clk
0:03:00.6]} 5... Nc5 {[%clk 0:02:56.5]} 6. Be2 {[%clk 0:02:58.9]} 6... Be7
{[%clk 0:02:51.3]} 7. O-O {[%clk 0:02:59.8]} 7... O-O {[%clk 0:02:51.8]} 8. Re1
{[%clk 0:03:00.7]} 8... c6 {[%clk 0:02:40.5]} 9. Nf1 {[%clk 0:03:01.2]} 9...
Nbd7 {[%clk 0:02:40.4]} 10. Ng3 {[%clk 0:03:00.5]} 10... Re8 {[%clk 0:02:41]}
11. Nf5 {[%clk 0:02:57.8]} 11... Bf8 {[%clk 0:02:37]} 12. Bg5 {[%clk 0:02:23.8]}
12... Qb6 {[%clk 0:02:29.9]} 13. Bf1 {[%clk 0:01:23.2]} 13... Ne4 {[%clk
0:02:22.2]} 14. Be3 {[%clk 0:01:15.3]} 14... Bc5 {[%clk 0:02:06]} 15. Bd3 {[%clk
0:00:55.1]} 15... Nxe5 {[%clk 0:01:23.4]} 16. Bxe4 {[%clk 0:00:35.8]} 16... dxe4
{[%clk 0:01:21.8]} 17. Ne7+ {[%clk 0:00:27.3]} 17... Kf8 {[%clk 0:00:48.4]} 18.
Nxe5 {[%clk 0:00:27]} 18... Bxe3 {[%clk 0:00:30.4]} 19. Rxe3 {[%clk 0:00:24.8]}
19... Rxe7 {[%clk 0:00:30.4]} 20. Rxe4 {[%clk 0:00:20.6]} 20... Bf5 {[%clk
0:00:28.7]} 21. Re3 {[%clk 0:00:17.1]} 21... Rae8 {[%clk 0:00:27.7]} 22. Qd6
{[%clk 0:00:16.7]} 22... Kg8 {[%clk 0:00:15]} 23. Rae1 {[%clk 0:00:17]} 23... h6
{[%clk 0:00:11.2]} 24. g4 {[%clk 0:00:15.7]} 24... Be6 {[%clk 0:00:10.8]} 25.
Nxf7 {[%clk 0:00:12.6]} 25... Kxf7 {[%clk 0:00:11.4]} 26. Qf4+ {[%clk
0:00:03.3]} 26... Kg8 {[%clk 0:00:11.5]} 27. Qd6 {[%clk 0:00:04.1]} 27... c5
{[%clk 0:00:08.2]} 28. Qf4 {[%clk 0:00:02.2]} 28... Qd8 {[%clk 0:00:06.5]} 29.
h4 {[%clk 0:00:01.5]} 29... Bf7 {[%clk 0:00:06.6]} 0-1

[Event "Early-Titled-Tuesday-Blitz-June-18-2024"]
[Site "Chess.com"]
[Date "2024.06.18"]
[Round "4"]
[White "averageFM"]
[Black "Aygehovit1992"]
[Result "0-1"]
[WhiteElo "2575"]
[BlackElo "2797"]
[TimeControl "180+1"]
[EndTime "8:41:04 PDT"]
[Termination "Aygehovit1992 won by resignation"]

1. e4 {[%clk 0:03:00.9]} 1... c5 {[%clk 0:02:58.2]} 2. Nf3 {[%clk 0:03:00]} 2...
d6 {[%clk 0:02:56.4]} 3. d4 {[%clk 0:02:59.4]} 3... cxd4 {[%clk 0:02:57.3]} 4.
Nxd4 {[%clk 0:02:59.6]} 4... Nf6 {[%clk 0:02:57.5]} 5. Nc3 {[%clk 0:02:59.6]}
5... g6 {[%clk 0:02:57.7]} 6. Be3 {[%clk 0:02:58.1]} 6... Nc6 {[%clk 0:02:57.6]}
7. f3 {[%clk 0:02:58]} 7... h5 {[%clk 0:02:57.9]} 8. Bc4 {[%clk 0:02:57.3]} 8...
Bg7 {[%clk 0:02:54]} 9. Qd2 {[%clk 0:02:56.6]} 9... Bd7 {[%clk 0:02:54.2]} 10.
Nxc6 {[%clk 0:02:54.3]} 10... bxc6 {[%clk 0:02:51]} 11. O-O-O {[%clk 0:02:53.3]}
11... Qa5 {[%clk 0:02:49]} 12. Kb1 {[%clk 0:02:52.6]} 12... Rb8 {[%clk 0:02:48]}
13. Bb3 {[%clk 0:02:47.8]} 13... c5 {[%clk 0:02:42.1]} 14. e5 {[%clk 0:02:46.5]}
14... dxe5 {[%clk 0:02:38.4]} 15. Nd5 {[%clk 0:02:43]} 15... Qxd2 {[%clk
0:02:36.7]} 16. Rxd2 {[%clk 0:02:42.5]} 16... e4 {[%clk 0:01:01.1]} 17. Nc7+
{[%clk 0:02:30]} 17... Kf8 {[%clk 0:00:50.3]} 18. Na6 {[%clk 0:02:28.5]} 18...
Rc8 {[%clk 0:00:44.9]} 19. Nxc5 {[%clk 0:02:19.7]} 19... Bc6 {[%clk 0:00:44.6]}
20. fxe4 {[%clk 0:02:14.3]} 20... Nxe4 {[%clk 0:00:41.8]} 21. Nxe4 {[%clk
0:02:08.3]} 21... Bxe4 {[%clk 0:00:42.7]} 22. Rf1 {[%clk 0:02:05.8]} 22... f5
{[%clk 0:00:41]} 23. Bxa7 {[%clk 0:02:01.3]} 23... Be5 {[%clk 0:00:37.6]} 24. h3
{[%clk 0:01:45.2]} 24... Kg7 {[%clk 0:00:35]} 25. Bd5 {[%clk 0:01:28.2]} 25...
Rhd8 {[%clk 0:00:31.1]} 26. Rfd1 {[%clk 0:01:25.5]} 26... Rxd5 {[%clk
0:00:31.1]} 27. Rxd5 {[%clk 0:01:25.2]} 27... Bxc2+ {[%clk 0:00:31.3]} 28. Ka1
{[%clk 0:01:24.4]} 28... Bxd1 {[%clk 0:00:31.9]} 29. Rxd1 {[%clk 0:01:24]} 29...
Rc2 {[%clk 0:00:32]} 30. Rb1 {[%clk 0:01:18.9]} 30... Rxg2 {[%clk 0:00:31.1]}
31. a4 {[%clk 0:01:19.2]} 31... Rg3 {[%clk 0:00:30.9]} 32. Ka2 {[%clk
0:01:19.2]} 32... Rxh3 {[%clk 0:00:31]} 33. a5 {[%clk 0:01:19.1]} 33... Rd3
{[%clk 0:00:27.9]} 34. Bb6 {[%clk 0:01:18.7]} 34... Bb8 {[%clk 0:00:16.5]} 35.
b4 {[%clk 0:01:16.6]} 35... h4 {[%clk 0:00:14.5]} 36. a6 {[%clk 0:01:12.5]}
36... Rd7 {[%clk 0:00:14.1]} 37. Rc1 {[%clk 0:01:06.5]} 37... g5 {[%clk
0:00:12.2]} 38. Rc8 {[%clk 0:01:06.1]} 38... Ba7 {[%clk 0:00:12.2]} 39. Bxa7
{[%clk 0:01:02.4]} 39... Rxa7 {[%clk 0:00:13.1]} 40. b5 {[%clk 0:01:02.8]} 40...
h3 {[%clk 0:00:13.5]} 41. Rc1 {[%clk 0:00:56]} 41... g4 {[%clk 0:00:13.4]} 42.
Rh1 {[%clk 0:00:55.9]} 42... f4 {[%clk 0:00:12.5]} 43. Kb3 {[%clk 0:00:56.1]}
43... f3 {[%clk 0:00:13]} 44. Kb4 {[%clk 0:00:49.7]} 44... f2 {[%clk 0:00:13.3]}
45. Ka5 {[%clk 0:00:49.8]} 45... g3 {[%clk 0:00:13.8]} 46. b6 {[%clk 0:00:50.2]}
46... Rxa6+ {[%clk 0:00:11.6]} 47. Kxa6 {[%clk 0:00:50.3]} 47... g2 {[%clk
0:00:12.3]} 0-1

[Event "Early-Titled-Tuesday-Blitz-June-18-2024"]
[Site "Chess.com"]
[Date "2024.06.18"]
[Round "4"]
[White "Sek_Konstantin"]
[Black "tomesao"]
[Result "1-0"]
[WhiteElo "2726"]
[BlackElo "2531"]
[TimeControl "180+1"]
[EndTime "8:41:04 PDT"]
[Termination "Sek_Konstantin won by resignation"]

1. e4 {[%clk 0:03:00.9]} 1... c6 {[%clk 0:02:59.2]} 2. c4 {[%clk 0:03:00]} 2...
d5 {[%clk 0:03:00.1]} 3. exd5 {[%clk 0:03:00]} 3... cxd5 {[%clk 0:03:00.3]} 4.
cxd5 {[%clk 0:03:00.4]} 4... Nf6 {[%clk 0:02:59.6]} 5. Nc3 {[%clk 0:03:00]} 5...
Nxd5 {[%clk 0:02:59.4]} 6. Nf3 {[%clk 0:02:59.9]} 6... Nc6 {[%clk 0:02:57.9]} 7.
Bb5 {[%clk 0:02:59.3]} 7... e6 {[%clk 0:02:56.4]} 8. O-O {[%clk 0:02:58.4]} 8...
Be7 {[%clk 0:02:56.1]} 9. d4 {[%clk 0:02:58.5]} 9... O-O {[%clk 0:02:55.5]} 10.
Re1 {[%clk 0:02:58.8]} 10... Bd7 {[%clk 0:02:54.4]} 11. Bd3 {[%clk 0:02:56.6]}
11... Rc8 {[%clk 0:02:47.7]} 12. a3 {[%clk 0:02:52.1]} 12... Bf6 {[%clk
0:02:41]} 13. Be4 {[%clk 0:02:50.6]} 13... Nce7 {[%clk 0:02:33.5]} 14. Bd2
{[%clk 0:02:35.3]} 14... Bc6 {[%clk 0:02:29.5]} 15. Bd3 {[%clk 0:02:31.8]} 15...
Ng6 {[%clk 0:02:22.2]} 16. Ne4 {[%clk 0:02:13.6]} 16... Be7 {[%clk 0:02:21.6]}
17. Rc1 {[%clk 0:02:02]} 17... Ndf4 {[%clk 0:02:12.8]} 18. Bf1 {[%clk
0:02:00.4]} 18... Qb6 {[%clk 0:02:06.1]} 19. b4 {[%clk 0:01:57.9]} 19... Bb5
{[%clk 0:02:01.9]} 20. Nc5 {[%clk 0:01:45.8]} 20... Bxf1 {[%clk 0:01:46.8]} 21.
Rxf1 {[%clk 0:01:45.8]} 21... Rfd8 {[%clk 0:01:32.8]} 22. g3 {[%clk 0:01:30.9]}
22... Nd5 {[%clk 0:01:24.8]} 23. h4 {[%clk 0:01:30.7]} 23... Bd6 {[%clk
0:01:11.9]} 24. h5 {[%clk 0:01:30.2]} 24... Nge7 {[%clk 0:01:11.5]} 25. h6
{[%clk 0:01:28.1]} 25... g6 {[%clk 0:01:10.6]} 26. Ng5 {[%clk 0:01:22]} 26...
Nf5 {[%clk 0:01:06.7]} 27. Qf3 {[%clk 0:01:20.5]} 27... Be7 {[%clk 0:00:46.9]}
28. g4 {[%clk 0:00:59.7]} 28... Bxg5 {[%clk 0:00:35.3]} 29. Bxg5 {[%clk
0:01:00]} 29... Nxd4 {[%clk 0:00:34.6]} 30. Qe4 {[%clk 0:00:58.5]} 30... f6
{[%clk 0:00:21]} 31. Qxd4 {[%clk 0:00:37.1]} 31... e5 {[%clk 0:00:20.8]} 32. Qc4
{[%clk 0:00:37.3]} 32... fxg5 {[%clk 0:00:19.6]} 33. Rfd1 {[%clk 0:00:37.9]}
33... Qd6 {[%clk 0:00:14.9]} 34. Rd2 {[%clk 0:00:31]} 34... b6 {[%clk
0:00:14.8]} 35. Rcd1 {[%clk 0:00:31]} 35... Qd7 {[%clk 0:00:03.9]} 36. Rxd5
{[%clk 0:00:27.1]} 36... Qxg4+ {[%clk 0:00:02.8]} 37. Qxg4 {[%clk 0:00:26]} 1-0

[Event "Early-Titled-Tuesday-Blitz-June-18-2024"]
[Site "Chess.com"]
[Date "2024.06.18"]
[Round "4"]
[White "JosefineHeinemann"]
[Black "teresin05"]
[Result "1-0"]
[WhiteElo "2493"]
[BlackElo "2307"]
[TimeControl "180+1"]
[EndTime "8:41:04 PDT"]
[Termination "JosefineHeinemann won by resignation"]

1. e4 {[%clk 0:03:00.9]} 1... c5 {[%clk 0:02:56.7]} 2. c3 {[%clk 0:02:59.9]}
2... d5 {[%clk 0:02:53]} 3. exd5 {[%clk 0:02:59.4]} 3... Qxd5 {[%clk 0:02:53.9]}
4. d4 {[%clk 0:02:59.4]} 4... g6 {[%clk 0:02:43.5]} 5. Nf3 {[%clk 0:02:54.6]}
5... Bg7 {[%clk 0:02:39.4]} 6. Nbd2 {[%clk 0:02:54.5]} 6... Nc6 {[%clk
0:02:29.7]} 7. Bc4 {[%clk 0:02:54.2]} 7... Qd8 {[%clk 0:02:08.2]} 8. dxc5 {[%clk
0:02:52.2]} 8... e6 {[%clk 0:02:03.3]} 9. O-O {[%clk 0:02:51.7]} 9... Nge7
{[%clk 0:02:01.1]} 10. Ne4 {[%clk 0:02:51.7]} 10... O-O {[%clk 0:01:58]} 11.
Qxd8 {[%clk 0:02:36.4]} 11... Rxd8 {[%clk 0:01:58.9]} 12. Bg5 {[%clk 0:02:36.2]}
12... h6 {[%clk 0:01:29.7]} 13. Bf6 {[%clk 0:02:35.7]} 13... Bxf6 {[%clk
0:01:24.3]} 14. Nxf6+ {[%clk 0:02:36.6]} 14... Kg7 {[%clk 0:01:24.9]} 15. Ne4
{[%clk 0:02:35.4]} 15... e5 {[%clk 0:01:20.7]} 16. Nd6 {[%clk 0:02:32.9]} 16...
f6 {[%clk 0:01:10.5]} 17. Nxc8 {[%clk 0:02:18.1]} 17... Raxc8 {[%clk 0:01:11.4]}
18. Be6 {[%clk 0:02:14.1]} 18... Rc7 {[%clk 0:01:10.3]} 19. Rad1 {[%clk
0:02:13.7]} 19... a5 {[%clk 0:01:05]} 20. Rd6 {[%clk 0:02:05.7]} 20... b6 {[%clk
0:00:48.5]} 21. Rfd1 {[%clk 0:02:00.3]} 21... Rb8 {[%clk 0:00:45.2]} 22. cxb6
{[%clk 0:01:55.4]} 22... Rxb6 {[%clk 0:00:46.1]} 23. b3 {[%clk 0:01:48.4]} 23...
a4 {[%clk 0:00:26.1]} 24. b4 {[%clk 0:01:36.2]} 24... Rbb7 {[%clk 0:00:21.5]}
25. a3 {[%clk 0:01:28.9]} 25... Na7 {[%clk 0:00:19.5]} 26. c4 {[%clk 0:01:27.9]}
26... Nac6 {[%clk 0:00:14.8]} 27. Rd7 {[%clk 0:01:12.2]} 27... Nd4 {[%clk
0:00:05.7]} 28. Rxc7 {[%clk 0:01:11.3]} 28... Nxf3+ {[%clk 0:00:05.5]} 29. gxf3
{[%clk 0:01:10.8]} 29... Rxc7 {[%clk 0:00:06.4]} 30. Rd7 {[%clk 0:01:06.3]}
30... Rxd7 {[%clk 0:00:06.3]} 31. Bxd7 {[%clk 0:01:07.2]} 31... f5 {[%clk
0:00:07]} 32. Bxa4 {[%clk 0:01:06.6]} 32... Kf6 {[%clk 0:00:07.2]} 33. Bd7
{[%clk 0:01:02.1]} 33... e4 {[%clk 0:00:07]} 34. fxe4 {[%clk 0:00:59.8]} 34...
fxe4 {[%clk 0:00:07.9]} 35. c5 {[%clk 0:00:54.3]} 35... Ke5 {[%clk 0:00:07.8]}
36. b5 {[%clk 0:00:54.3]} 36... Kd5 {[%clk 0:00:07.9]} 37. c6 {[%clk 0:00:52.9]}
37... Kc5 {[%clk 0:00:03.6]} 38. c7 {[%clk 0:00:50.4]} 38... Kb6 {[%clk
0:00:02.7]} 39. c8=Q {[%clk 0:00:49.3]} 39... Nxc8 {[%clk 0:00:03.4]} 40. Bxc8
{[%clk 0:00:49.5]} 40... Kxb5 {[%clk 0:00:04.3]} 41. Bb7 {[%clk 0:00:48.1]}
41... Ka4 {[%clk 0:00:04.4]} 42. Bxe4 {[%clk 0:00:47.9]} 42... g5 {[%clk
0:00:04.5]} 43. Kg2 {[%clk 0:00:48.1]} 43... Kxa3 {[%clk 0:00:04.8]} 44. Kg3
{[%clk 0:00:48.8]} 44... Kb4 {[%clk 0:00:05.7]} 45. Kg4 {[%clk 0:00:49.2]} 45...
Kc5 {[%clk 0:00:06.1]} 46. Kh5 {[%clk 0:00:49.5]} 46... Kd4 {[%clk 0:00:07]} 47.
f3 {[%clk 0:00:48.6]} 47... Ke3 {[%clk 0:00:06.8]} 48. Kxh6 {[%clk 0:00:47.3]}
48... g4 {[%clk 0:00:07.2]} 49. fxg4 {[%clk 0:00:47.2]} 49... Kxe4 {[%clk
0:00:08]} 50. g5 {[%clk 0:00:47.9]} 1-0

[Event "Early-Titled-Tuesday-Blitz-June-18-2024"]
[Site "Chess.com"]
[Date "2024.06.18"]
[Round "4"]
[White "Kors67"]
[Black "rachidhuilda"]
[Result "1/2-1/2"]
[WhiteElo "2289"]
[BlackElo "2397"]
[TimeControl "180+1"]
[EndTime "8:41:05 PDT"]
[Termination "Game drawn by repetition"]

1. e4 {[%clk 0:03:00.9]} 1... d5 {[%clk 0:02:55.5]} 2. exd5 {[%clk 0:03:00.1]}
2... Qxd5 {[%clk 0:02:56]} 3. Nc3 {[%clk 0:02:59.9]} 3... Qa5 {[%clk 0:02:55.9]}
4. d4 {[%clk 0:02:59.7]} 4... c6 {[%clk 0:02:56.4]} 5. Nf3 {[%clk 0:02:59.4]}
5... Nf6 {[%clk 0:02:56.9]} 6. Bc4 {[%clk 0:02:56.7]} 6... Bf5 {[%clk
0:02:56.3]} 7. Bd2 {[%clk 0:02:51.3]} 7... e6 {[%clk 0:02:56.3]} 8. Nd5 {[%clk
0:02:30.9]} 8... Qd8 {[%clk 0:02:53.7]} 9. Nxf6+ {[%clk 0:02:30.2]} 9... gxf6
{[%clk 0:02:54]} 10. c3 {[%clk 0:02:21.3]} 10... Nd7 {[%clk 0:02:51.6]} 11. Qe2
{[%clk 0:02:15.9]} 11... Qc7 {[%clk 0:02:44]} 12. h3 {[%clk 0:02:15.5]} 12...
O-O-O {[%clk 0:02:43.4]} 13. g4 {[%clk 0:01:56.4]} 13... Bg6 {[%clk 0:02:42.8]}
14. Nh4 {[%clk 0:01:56.7]} 14... c5 {[%clk 0:02:13.6]} 15. Nxg6 {[%clk
0:01:45.3]} 15... hxg6 {[%clk 0:02:13.3]} 16. dxc5 {[%clk 0:01:44]} 16... Nxc5
{[%clk 0:02:07.7]} 17. O-O-O {[%clk 0:01:43.8]} 17... Bd6 {[%clk 0:01:25.8]} 18.
Kb1 {[%clk 0:01:38.7]} 18... Bf4 {[%clk 0:01:19.5]} 19. Bxf4 {[%clk 0:01:07.6]}
19... Qxf4 {[%clk 0:01:15.1]} 20. Rxd8+ {[%clk 0:00:49.7]} 20... Rxd8 {[%clk
0:01:13.8]} 21. Kc2 {[%clk 0:00:50]} 21... Ne4 {[%clk 0:01:00]} 22. Bd3 {[%clk
0:00:35.4]} 22... Qxf2 {[%clk 0:00:40.4]} 23. Re1 {[%clk 0:00:27.2]} 23... Qxe2+
{[%clk 0:00:33.7]} 24. Rxe2 {[%clk 0:00:27.5]} 24... Nc5 {[%clk 0:00:31.2]} 25.
Bc4 {[%clk 0:00:24.9]} 25... Rh8 {[%clk 0:00:30.7]} 26. b4 {[%clk 0:00:24.1]}
26... Nd7 {[%clk 0:00:29.5]} 27. Re3 {[%clk 0:00:24.4]} 27... Ne5 {[%clk
0:00:29.2]} 28. Bf1 {[%clk 0:00:21.4]} 28... g5 {[%clk 0:00:28.2]} 29. c4 {[%clk
0:00:19.2]} 29... Kc7 {[%clk 0:00:28.4]} 30. c5 {[%clk 0:00:19]} 30... Rd8
{[%clk 0:00:27.6]} 31. Bg2 {[%clk 0:00:14.3]} 31... Rd4 {[%clk 0:00:26.6]} 32.
a3 {[%clk 0:00:14.3]} 32... Rf4 {[%clk 0:00:26.5]} 33. Kc3 {[%clk 0:00:13.6]}
33... Rf2 {[%clk 0:00:25.7]} 34. Be4 {[%clk 0:00:13.4]} 34... Ra2 {[%clk
0:00:20.8]} 35. Kb3 {[%clk 0:00:13]} 35... Rf2 {[%clk 0:00:18.9]} 36. Kc3 {[%clk
0:00:13.1]} 36... Rh2 {[%clk 0:00:14.5]} 37. Kb3 {[%clk 0:00:12.8]} 37... Rf2
{[%clk 0:00:13.2]} 38. Kc3 {[%clk 0:00:13]} 1/2-1/2

[Event "Early-Titled-Tuesday-Blitz-June-18-2024"]
[Site "Chess.com"]
[Date "2024.06.18"]
[Round "4"]
[White "Matols"]
[Black "zverr1"]
[Result "0-1"]
[WhiteElo "2362"]
[BlackElo "2545"]
[TimeControl "180+1"]
[EndTime "8:41:06 PDT"]
[Termination "zverr1 won by resignation"]

1. d4 {[%clk 0:03:00.9]} 1... Nf6 {[%clk 0:02:59.9]} 2. c4 {[%clk 0:03:01.2]}
2... g6 {[%clk 0:03:00.6]} 3. g3 {[%clk 0:03:01.5]} 3... Bg7 {[%clk 0:03:01.3]}
4. Bg2 {[%clk 0:03:02]} 4... O-O {[%clk 0:03:00.7]} 5. Nc3 {[%clk 0:03:02.4]}
5... c5 {[%clk 0:02:57.5]} 6. d5 {[%clk 0:03:01.5]} 6... e6 {[%clk 0:02:54.6]}
7. Nf3 {[%clk 0:03:01]} 7... exd5 {[%clk 0:02:48.8]} 8. cxd5 {[%clk 0:03:01.9]}
8... b5 {[%clk 0:02:46.4]} 9. Nxb5 {[%clk 0:02:54.7]} 9... Qa5+ {[%clk
0:02:44.4]} 10. Nc3 {[%clk 0:02:53.9]} 10... d6 {[%clk 0:02:41.5]} 11. O-O
{[%clk 0:02:51.5]} 11... Bf5 {[%clk 0:02:42]} 12. Nd2 {[%clk 0:02:41.1]} 12...
Na6 {[%clk 0:02:34.4]} 13. Nc4 {[%clk 0:02:34.8]} 13... Qd8 {[%clk 0:02:28.3]}
14. Bf4 {[%clk 0:02:32.1]} 14... Ne8 {[%clk 0:02:17.8]} 15. e4 {[%clk
0:02:31.3]} 15... Bc8 {[%clk 0:02:16]} 16. e5 {[%clk 0:02:30.9]} 16... g5 {[%clk
0:01:59.6]} 17. Be3 {[%clk 0:02:22.4]} 17... Rb8 {[%clk 0:01:58.5]} 18. Qh5
{[%clk 0:02:06.5]} 18... h6 {[%clk 0:01:54.3]} 19. h4 {[%clk 0:01:14.9]} 19...
Rb4 {[%clk 0:01:54.2]} 20. b3 {[%clk 0:00:52.9]} 20... dxe5 {[%clk 0:01:52.4]}
21. hxg5 {[%clk 0:00:49.4]} 21... Bf5 {[%clk 0:01:34.7]} 22. gxh6 {[%clk
0:00:47.7]} 22... Bg6 {[%clk 0:01:35.3]} 23. hxg7 {[%clk 0:00:31.3]} 23... Bxh5
{[%clk 0:01:29.4]} 24. gxf8=Q+ {[%clk 0:00:31.2]} 24... Kxf8 {[%clk 0:01:29]}
25. Nxe5 {[%clk 0:00:26.6]} 25... Nd6 {[%clk 0:01:22.4]} 26. Bh6+ {[%clk
0:00:21.9]} 26... Kg8 {[%clk 0:01:22.3]} 27. Rae1 {[%clk 0:00:20.7]} 27... Qf6
{[%clk 0:01:22.4]} 28. Bf4 {[%clk 0:00:19.7]} 28... Rxf4 {[%clk 0:01:17.5]} 29.
gxf4 {[%clk 0:00:20.6]} 29... Qxf4 {[%clk 0:01:18.4]} 30. Re3 {[%clk 0:00:16.6]}
30... Nb4 {[%clk 0:01:15.2]} 31. Nd7 {[%clk 0:00:16]} 31... Nc2 {[%clk
0:01:11.6]} 32. Rg3+ {[%clk 0:00:15.8]} 32... Bg6 {[%clk 0:01:11.2]} 33. Rd1
{[%clk 0:00:14.4]} 33... Nd4 {[%clk 0:01:11.6]} 34. Re1 {[%clk 0:00:13.8]} 34...
N6f5 {[%clk 0:01:09.9]} 35. Re8+ {[%clk 0:00:13]} 35... Kg7 {[%clk 0:01:10.4]}
36. Ne4 {[%clk 0:00:12.4]} 36... Ne2+ {[%clk 0:01:07.9]} 37. Kh2 {[%clk
0:00:12.1]} 37... Nexg3 {[%clk 0:01:08.8]} 38. fxg3 {[%clk 0:00:12.1]} 38...
Qh6+ {[%clk 0:01:08.2]} 39. Kg1 {[%clk 0:00:12.4]} 39... Qe3+ {[%clk 0:01:06.8]}
40. Kh2 {[%clk 0:00:11.9]} 40... Nxg3 {[%clk 0:01:01.3]} 41. Ndf6 {[%clk
0:00:12.1]} 41... Nxe4 {[%clk 0:00:58.6]} 42. Nxe4 {[%clk 0:00:10.9]} 42... f5
{[%clk 0:00:55.6]} 43. Nd6 {[%clk 0:00:09.9]} 43... Qf4+ {[%clk 0:00:54.8]} 44.
Kg1 {[%clk 0:00:09.9]} 44... Bxe8 {[%clk 0:00:50.5]} 45. Nxe8+ {[%clk
0:00:06.2]} 45... Kf8 {[%clk 0:00:51.1]} 46. Nf6 {[%clk 0:00:05.9]} 46... Qd4+
{[%clk 0:00:51.8]} 0-1

[Event "Early-Titled-Tuesday-Blitz-June-18-2024"]
[Site "Chess.com"]
[Date "2024.06.18"]
[Round "4"]
[White "BestestBP"]
[Black "anemih"]
[Result "0-1"]
[WhiteElo "2269"]
[BlackElo "2482"]
[TimeControl "180+1"]
[EndTime "8:41:08 PDT"]
[Termination "anemih won on time"]

1. e4 {[%clk 0:03:00.9]} 1... c5 {[%clk 0:02:57.7]} 2. Nf3 {[%clk 0:03:00.7]}
2... g6 {[%clk 0:02:57]} 3. d4 {[%clk 0:02:58.7]} 3... cxd4 {[%clk 0:02:57.9]}
4. Nxd4 {[%clk 0:02:59.1]} 4... Bg7 {[%clk 0:02:57.7]} 5. Be3 {[%clk 0:02:57.1]}
5... Nc6 {[%clk 0:02:58.2]} 6. Nc3 {[%clk 0:02:57.2]} 6... Nf6 {[%clk
0:02:58.6]} 7. Be2 {[%clk 0:02:54.6]} 7... O-O {[%clk 0:02:58.7]} 8. O-O {[%clk
0:02:54.4]} 8... d5 {[%clk 0:02:57.5]} 9. exd5 {[%clk 0:02:51.6]} 9... Nb4
{[%clk 0:02:58.2]} 10. Bf3 {[%clk 0:02:46.3]} 10... Nbxd5 {[%clk 0:02:58.7]} 11.
Nxd5 {[%clk 0:02:41.9]} 11... Nxd5 {[%clk 0:02:59.6]} 12. Bg5 {[%clk 0:02:35.7]}
12... h6 {[%clk 0:02:51.5]} 13. Bh4 {[%clk 0:02:23.5]} 13... g5 {[%clk
0:02:47.4]} 14. Bg3 {[%clk 0:02:05.4]} 14... e5 {[%clk 0:02:40.1]} 15. Nb5
{[%clk 0:01:53.6]} 15... Be6 {[%clk 0:02:39.3]} 16. Re1 {[%clk 0:01:47.9]} 16...
f6 {[%clk 0:02:36.9]} 17. c4 {[%clk 0:01:42.6]} 17... Nb4 {[%clk 0:02:32.2]} 18.
Qb3 {[%clk 0:01:36.8]} 18... Nc6 {[%clk 0:02:28.5]} 19. Rad1 {[%clk 0:01:30.8]}
19... Qe7 {[%clk 0:02:28.5]} 20. Bd5 {[%clk 0:01:28]} 20... Rfd8 {[%clk
0:02:25.6]} 21. Bxe6+ {[%clk 0:01:20]} 21... Qxe6 {[%clk 0:02:23.1]} 22. Nc7
{[%clk 0:01:17.5]} 22... Qf7 {[%clk 0:02:07.5]} 23. Nxa8 {[%clk 0:01:07.3]}
23... Rxa8 {[%clk 0:02:03.6]} 24. f3 {[%clk 0:01:01.9]} 24... Nd4 {[%clk
0:02:02.2]} 25. Qc3 {[%clk 0:00:56]} 25... Rd8 {[%clk 0:02:00]} 26. Bf2 {[%clk
0:00:51.9]} 26... Ne2+ {[%clk 0:01:58.7]} 27. Rxe2 {[%clk 0:00:49.8]} 27...
Rxd1+ {[%clk 0:01:58.5]} 28. Re1 {[%clk 0:00:50.4]} 28... Qd7 {[%clk 0:01:56.5]}
29. Bxa7 {[%clk 0:00:37.9]} 29... Rxe1+ {[%clk 0:01:48.1]} 30. Qxe1 {[%clk
0:00:31.5]} 30... Qa4 {[%clk 0:01:48.5]} 31. Be3 {[%clk 0:00:20.3]} 31... Qxa2
{[%clk 0:01:45.5]} 32. Qc3 {[%clk 0:00:16.7]} 32... Qb1+ {[%clk 0:01:40.7]} 33.
Kf2 {[%clk 0:00:16.3]} 33... Bf8 {[%clk 0:01:40]} 34. c5 {[%clk 0:00:15.6]}
34... Qa2 {[%clk 0:01:38.9]} 35. h3 {[%clk 0:00:11.2]} 35... Qd5 {[%clk
0:01:39.4]} 36. b4 {[%clk 0:00:10.5]} 36... h5 {[%clk 0:01:39.3]} 37. Kg3 {[%clk
0:00:09.7]} 37... h4+ {[%clk 0:01:39.3]} 38. Kh2 {[%clk 0:00:10]} 38... Kf7
{[%clk 0:01:35.3]} 39. b5 {[%clk 0:00:09.8]} 39... e4 {[%clk 0:01:32.4]} 40.
fxe4 {[%clk 0:00:06]} 40... Qxe4 {[%clk 0:01:32.4]} 41. c6 {[%clk 0:00:03.7]}
41... bxc6 {[%clk 0:01:32.4]} 42. bxc6 {[%clk 0:00:03.2]} 42... Bd6+ {[%clk
0:01:32.4]} 43. Kh1 {[%clk 0:00:03.9]} 43... Qe5 {[%clk 0:01:18.3]} 44. Qxe5
{[%clk 0:00:03.3]} 44... Bxe5 {[%clk 0:01:18.4]} 45. Kg1 {[%clk 0:00:02.1]}
45... Ke6 {[%clk 0:01:18.3]} 46. Kf2 {[%clk 0:00:02.6]} 46... Kd6 {[%clk
0:01:18.2]} 47. Kf3 {[%clk 0:00:03.1]} 47... Kxc6 {[%clk 0:01:18.6]} 48. Ke4
{[%clk 0:00:03.8]} 48... Kd6 {[%clk 0:01:18.5]} 49. Kf5 {[%clk 0:00:04.4]} 49...
Kd5 {[%clk 0:01:18.4]} 50. Bd2 {[%clk 0:00:02.7]} 50... Kd4 {[%clk 0:01:15.3]}
51. Bc1 {[%clk 0:00:02.7]} 51... Kd5 {[%clk 0:01:09.2]} 52. Bd2 {[%clk
0:00:01.9]} 52... Bb2 {[%clk 0:01:07.3]} 53. Be3 {[%clk 0:00:02.2]} 53... Kc4
{[%clk 0:01:06.2]} 54. Bd2 {[%clk 0:00:02]} 54... Kd3 {[%clk 0:01:06.3]} 55. Ba5
{[%clk 0:00:02]} 55... Ke2 {[%clk 0:01:06.4]} 56. Bc7 {[%clk 0:00:01]} 56... Kf2
{[%clk 0:01:05.3]} 0-1